[Event "*** SCC Grand Prix: Titled Tuesday Blitz"]
[Site "Chess.com"]
[Date "2020.07.21"]
[Round "8"]
[White "davigator"]
[Black "CrushingKings"]
[Result "0-1"]
[WhiteElo "2342"]
[BlackElo "2525"]
[TimeControl "180+1"]
[EndTime "11:35:39 PDT"]
[Termination "CrushingKings won by resignation"]

1. e4 {[%clk 0:03:00.9]} 1... c5 {[%clk 0:02:21.3]} 2. Nf3 {[%clk 0:03:00.2]}
2... e6 {[%clk 0:02:21.8]} 3. d4 {[%clk 0:02:59.7]} 3... cxd4 {[%clk 0:02:22.7]}
4. Nxd4 {[%clk 0:02:59.4]} 4... Nc6 {[%clk 0:02:23.2]} 5. Nc3 {[%clk 0:02:59.2]}
5... Qc7 {[%clk 0:02:23.6]} 6. a3 {[%clk 0:02:58.8]} 6... a6 {[%clk 0:02:23.4]}
7. f4 {[%clk 0:02:58.5]} 7... b5 {[%clk 0:02:20.2]} 8. Nxc6 {[%clk 0:02:54.5]}
8... Qxc6 {[%clk 0:02:20]} 9. Be3 {[%clk 0:02:52.9]} 9... b4 {[%clk 0:02:18.2]}
10. axb4 {[%clk 0:02:45.4]} 10... Bxb4 {[%clk 0:02:19.1]} 11. Bd4 {[%clk
0:02:43.6]} 11... Nf6 {[%clk 0:02:16.4]} 12. e5 {[%clk 0:02:42.2]} 12... Nd5
{[%clk 0:02:01.5]} 13. Qf3 {[%clk 0:02:38.1]} 13... Bb7 {[%clk 0:01:57.8]} 14.
Qg3 {[%clk 0:02:38]} 14... O-O {[%clk 0:01:50.4]} 15. Be2 {[%clk 0:02:37.6]}
15... Ne7 {[%clk 0:01:16]} 16. Bd3 {[%clk 0:02:19.2]} 16... Bc5 {[%clk
0:00:58.9]} 17. Bxc5 {[%clk 0:02:15.9]} 17... Qxc5 {[%clk 0:00:59.8]} 18. O-O-O
{[%clk 0:02:08]} 18... Rfc8 {[%clk 0:00:34.1]} 19. Rd2 {[%clk 0:01:54.5]} 19...
Rab8 {[%clk 0:00:28]} 20. Re1 {[%clk 0:01:16.4]} 20... Bd5 {[%clk 0:00:23.1]}
21. f5 {[%clk 0:01:04.4]} 21... Qb4 {[%clk 0:00:17.2]} 22. Nd1 {[%clk
0:00:59.1]} 22... Qa5 {[%clk 0:00:16.5]} 23. Rf2 {[%clk 0:00:53.4]} 23... Qxe1
{[%clk 0:00:15.7]} 24. f6 {[%clk 0:00:51.4]} 24... Ng6 {[%clk 0:00:15.8]} 25.
fxg7 {[%clk 0:00:48.4]} 25... Qxe5 {[%clk 0:00:14.5]} 26. Qg4 {[%clk 0:00:45.4]}
26... Qxg7 {[%clk 0:00:13]} 27. h4 {[%clk 0:00:44.9]} 27... Qh6+ {[%clk
0:00:12.9]} 28. Kb1 {[%clk 0:00:44]} 28... Qxh4 {[%clk 0:00:12.3]} 29. Qe2
{[%clk 0:00:43.6]} 29... Nf4 {[%clk 0:00:11.4]} 30. g3 {[%clk 0:00:41.2]} 30...
Nxe2 {[%clk 0:00:11.4]} 31. gxh4 {[%clk 0:00:40.6]} 31... Nd4 {[%clk 0:00:12.1]}
32. Rf4 {[%clk 0:00:37.2]} 32... Nf5 {[%clk 0:00:11.8]} 33. Rg4+ {[%clk
0:00:34.4]} 33... Kf8 {[%clk 0:00:12.3]} 34. h5 {[%clk 0:00:31.4]} 34... Bf3
{[%clk 0:00:12.6]} 35. Rg1 {[%clk 0:00:31.2]} 35... Bxd1 {[%clk 0:00:13.1]} 36.
Rxd1 {[%clk 0:00:30.6]} 36... Ke7 {[%clk 0:00:13.6]} 37. Re1 {[%clk 0:00:30.2]}
37... Nd4 {[%clk 0:00:13.8]} 38. Re4 {[%clk 0:00:29.7]} 38... Nc6 {[%clk
0:00:13.2]} 39. h6 {[%clk 0:00:28.8]} 39... Rg8 {[%clk 0:00:12.8]} 40. Ra4
{[%clk 0:00:26.7]} 40... Rg1+ {[%clk 0:00:13]} 41. Ka2 {[%clk 0:00:26.2]} 41...
Nb4+ {[%clk 0:00:13.6]} 42. Ka3 {[%clk 0:00:26.1]} 42... Ra1+ {[%clk 0:00:13.7]}
43. Kb3 {[%clk 0:00:24.5]} 43... Nxd3+ {[%clk 0:00:14.3]} 44. Kc3 {[%clk
0:00:23.6]} 44... Rxa4 {[%clk 0:00:14.9]} 0-1

[Event "*** SCC Grand Prix: Titled Tuesday Blitz"]
[Site "Chess.com"]
[Date "2020.07.21"]
[Round "8"]
[White "amatatanav"]
[Black "SHIVACalypso"]
[Result "0-1"]
[WhiteElo "2483"]
[BlackElo "2368"]
[TimeControl "180+1"]
[EndTime "11:35:39 PDT"]
[Termination "SHIVACalypso won on time"]

1. e4 {[%clk 0:03:00.9]} 1... e6 {[%clk 0:03:00.4]} 2. d4 {[%clk 0:03:00.3]}
2... d5 {[%clk 0:03:00.7]} 3. Nc3 {[%clk 0:03:00.9]} 3... Nf6 {[%clk 0:03:00.3]}
4. Bg5 {[%clk 0:02:59.7]} 4... dxe4 {[%clk 0:02:59.8]} 5. Nxe4 {[%clk
0:02:57.8]} 5... Be7 {[%clk 0:02:59.5]} 6. Bxf6 {[%clk 0:02:57.5]} 6... gxf6
{[%clk 0:03:00]} 7. Nf3 {[%clk 0:02:56.9]} 7... f5 {[%clk 0:03:00.6]} 8. Nc3
{[%clk 0:02:55.7]} 8... a6 {[%clk 0:03:00.9]} 9. g3 {[%clk 0:02:52.3]} 9... b5
{[%clk 0:03:00.8]} 10. Bg2 {[%clk 0:02:52.3]} 10... Bb7 {[%clk 0:02:58.7]} 11.
O-O {[%clk 0:02:50.3]} 11... O-O {[%clk 0:02:58.6]} 12. Ne5 {[%clk 0:02:22.2]}
12... Bxg2 {[%clk 0:02:59.5]} 13. Kxg2 {[%clk 0:02:21.9]} 13... b4 {[%clk
0:02:59.4]} 14. Qf3 {[%clk 0:02:08.3]} 14... bxc3 {[%clk 0:02:52.6]} 15. Qxa8
{[%clk 0:02:06.4]} 15... Qxd4 {[%clk 0:02:38.9]} 16. Nf3 {[%clk 0:01:52.6]}
16... Qb6 {[%clk 0:02:35.9]} 17. Ne5 {[%clk 0:01:19.1]} 17... cxb2 {[%clk
0:02:30.7]} 18. Rab1 {[%clk 0:00:50.6]} 18... Bf6 {[%clk 0:02:27.3]} 19. Nc4
{[%clk 0:00:50]} 19... Qb5 {[%clk 0:02:12.4]} 20. Na3 {[%clk 0:00:16.3]} 20...
Qa5 {[%clk 0:01:53.6]} 21. Qf3 {[%clk 0:00:17.2]} 21... Nd7 {[%clk 0:01:50.6]}
22. Rfd1 {[%clk 0:00:12.2]} 22... Ne5 {[%clk 0:01:43]} 23. Qb3 {[%clk
0:00:12.6]} 23... Nc6 {[%clk 0:01:35]} 24. Nc4 {[%clk 0:00:11.3]} 24... Qb4
{[%clk 0:01:28.7]} 25. Nxb2 {[%clk 0:00:09.4]} 25... Qe4+ {[%clk 0:01:16]} 26.
Qf3 {[%clk 0:00:09.1]} 26... Qxf3+ {[%clk 0:01:11.6]} 27. Kxf3 {[%clk
0:00:09.7]} 27... Nd4+ {[%clk 0:01:12.5]} 28. Kg2 {[%clk 0:00:07.4]} 28... Nxc2
{[%clk 0:01:10.5]} 29. Nd3 {[%clk 0:00:06.7]} 29... Na3 {[%clk 0:01:03.9]} 30.
Rbc1 {[%clk 0:00:06.9]} 30... Rd8 {[%clk 0:00:56.4]} 31. Rxc7 {[%clk 0:00:03.4]}
31... Nb5 {[%clk 0:00:53.4]} 32. Rc6 {[%clk 0:00:02.8]} 32... a5 {[%clk
0:00:51.7]} 33. Nb2 {[%clk 0:00:03.1]} 33... Rb8 {[%clk 0:00:46.1]} 34. Nc4
{[%clk 0:00:03.1]} 34... Nc3 {[%clk 0:00:41.3]} 35. Rd2 {[%clk 0:00:03.5]} 35...
Ne4 {[%clk 0:00:41.1]} 36. Rd7 {[%clk 0:00:03.1]} 36... Rb4 {[%clk 0:00:33.5]}
37. Rcc7 {[%clk 0:00:01.4]} 37... Bc3 {[%clk 0:00:22.4]} 0-1

[Event "*** SCC Grand Prix: Titled Tuesday Blitz"]
[Site "Chess.com"]
[Date "2020.07.21"]
[Round "8"]
[White "esrosenberg"]
[Black "bazar-wokzal"]
[Result "0-1"]
[WhiteElo "2199"]
[BlackElo "2419"]
[TimeControl "180+1"]
[EndTime "11:35:40 PDT"]
[Termination "bazar-wokzal won by checkmate"]

1. Nf3 {[%clk 0:03:00.9]} 1... g5 {[%clk 0:02:53.8]} 2. Nxg5 {[%clk 0:03:00.6]}
2... e5 {[%clk 0:02:53.5]} 3. d4 {[%clk 0:02:54.4]} 3... Be7 {[%clk 0:02:53]} 4.
Nf3 {[%clk 0:02:45.3]} 4... e4 {[%clk 0:02:52.8]} 5. Ne5 {[%clk 0:02:45.4]} 5...
d6 {[%clk 0:02:50.1]} 6. Nc4 {[%clk 0:02:42.1]} 6... d5 {[%clk 0:02:50.2]} 7.
Ne3 {[%clk 0:02:42.4]} 7... f5 {[%clk 0:02:45.1]} 8. c4 {[%clk 0:02:36.4]} 8...
c6 {[%clk 0:02:44.1]} 9. cxd5 {[%clk 0:02:32.8]} 9... cxd5 {[%clk 0:02:44.2]}
10. Nc3 {[%clk 0:02:33.5]} 10... Be6 {[%clk 0:02:43.9]} 11. Qb3 {[%clk
0:02:33.4]} 11... Nc6 {[%clk 0:01:55.5]} 12. Nexd5 {[%clk 0:02:24.9]} 12... Kf7
{[%clk 0:01:30.3]} 13. Qxb7 {[%clk 0:01:20.7]} 13... Nxd4 {[%clk 0:01:14.3]} 14.
Ne3 {[%clk 0:00:51.4]} 14... Rb8 {[%clk 0:00:45.7]} 15. Qxa7 {[%clk 0:00:48.1]}
15... f4 {[%clk 0:00:45.6]} 16. Nxe4 {[%clk 0:00:36.7]} 16... fxe3 {[%clk
0:00:43.4]} 17. Ng5+ {[%clk 0:00:35.7]} 17... Kg6 {[%clk 0:00:31.5]} 18. Qa4
{[%clk 0:00:15.2]} 18... Bb4+ {[%clk 0:00:28.1]} 19. Bd2 {[%clk 0:00:09.8]}
19... Bxd2+ {[%clk 0:00:26.2]} 20. Kd1 {[%clk 0:00:10.3]} 20... Kxg5 {[%clk
0:00:24.6]} 21. h4+ {[%clk 0:00:08.1]} 21... Kf6 {[%clk 0:00:22.8]} 22. g4
{[%clk 0:00:08.2]} 22... Rxb2 {[%clk 0:00:20.7]} 23. g5+ {[%clk 0:00:08.3]}
23... Kf7 {[%clk 0:00:20.2]} 24. Bh3 {[%clk 0:00:05.5]} 24... Qb6 {[%clk
0:00:17.4]} 25. Bxe6+ {[%clk 0:00:04.9]} 25... Nxe6 {[%clk 0:00:17.8]} 26. Qe4
{[%clk 0:00:03.3]} 26... Ne7 {[%clk 0:00:16.1]} 27. fxe3 {[%clk 0:00:03]} 27...
Rd8 {[%clk 0:00:14.2]} 28. Rf1+ {[%clk 0:00:03.2]} 28... Kg7 {[%clk 0:00:12.2]}
29. Qd3 {[%clk 0:00:01.9]} 29... Rxd3 {[%clk 0:00:10.1]} 30. exd3 {[%clk
0:00:02.8]} 30... Bxe3 {[%clk 0:00:10.5]} 31. Rf3 {[%clk 0:00:03.1]} 31... Qd4
{[%clk 0:00:10.2]} 32. Ke1 {[%clk 0:00:02.8]} 32... Qxd3 {[%clk 0:00:10.4]} 33.
Rxe3 {[%clk 0:00:02.8]} 33... Qxe3+ {[%clk 0:00:10.6]} 34. Kf1 {[%clk
0:00:03.7]} 34... Qf2# {[%clk 0:00:10.9]} 0-1

[Event "*** SCC Grand Prix: Titled Tuesday Blitz"]
[Site "Chess.com"]
[Date "2020.07.21"]
[Round "8"]
[White "praveenb2002"]
[Black "Witik"]
[Result "0-1"]
[WhiteElo "2752"]
[BlackElo "2618"]
[TimeControl "180+1"]
[EndTime "11:35:44 PDT"]
[Termination "Witik won by resignation"]

1. e4 {[%clk 0:03:00.9]} 1... c6 {[%clk 0:02:53.8]} 2. d4 {[%clk 0:03:00.1]}
2... d5 {[%clk 0:02:53.5]} 3. exd5 {[%clk 0:03:00.3]} 3... cxd5 {[%clk
0:02:53.4]} 4. c4 {[%clk 0:03:00.9]} 4... Nf6 {[%clk 0:02:53.3]} 5. Nc3 {[%clk
0:02:59]} 5... e6 {[%clk 0:02:53]} 6. Nf3 {[%clk 0:02:57.6]} 6... Be7 {[%clk
0:02:51]} 7. c5 {[%clk 0:02:53]} 7... O-O {[%clk 0:02:49.1]} 8. b4 {[%clk
0:02:52.3]} 8... b6 {[%clk 0:02:31]} 9. Bf4 {[%clk 0:02:48.3]} 9... Ne4 {[%clk
0:02:22.7]} 10. Qc2 {[%clk 0:02:44.6]} 10... Nc6 {[%clk 0:02:16.3]} 11. a3
{[%clk 0:02:36.9]} 11... bxc5 {[%clk 0:01:27]} 12. Nxe4 {[%clk 0:01:55.6]} 12...
dxe4 {[%clk 0:01:27.9]} 13. Qxe4 {[%clk 0:01:56.2]} 13... Nxd4 {[%clk
0:01:13.5]} 14. Bd3 {[%clk 0:01:54.5]} 14... Nxf3+ {[%clk 0:01:01.4]} 15. Qxf3
{[%clk 0:01:55.4]} 15... cxb4 {[%clk 0:00:54.8]} 16. O-O {[%clk 0:01:49.1]}
16... bxa3 {[%clk 0:00:49.2]} 17. Be4 {[%clk 0:01:47.7]} 17... Ba6 {[%clk
0:00:47]} 18. Rfd1 {[%clk 0:01:47.3]} 18... Qe8 {[%clk 0:00:36.3]} 19. Bc6
{[%clk 0:01:30.1]} 19... Qc8 {[%clk 0:00:35.8]} 20. Bxa8 {[%clk 0:01:09.6]}
20... Qxa8 {[%clk 0:00:35.8]} 21. Qxa8 {[%clk 0:01:10.5]} 21... Rxa8 {[%clk
0:00:36.1]} 22. Bd6 {[%clk 0:01:11.1]} 22... Bf6 {[%clk 0:00:20.5]} 23. Rxa3
{[%clk 0:01:09.9]} 23... Bc4 {[%clk 0:00:18.2]} 24. Rc1 {[%clk 0:00:50.4]} 24...
Bd5 {[%clk 0:00:10.1]} 25. Rxa7 {[%clk 0:00:49]} 25... Re8 {[%clk 0:00:09.2]}
26. h3 {[%clk 0:00:34.5]} 26... h5 {[%clk 0:00:09.5]} 27. Rcc7 {[%clk 0:00:33]}
27... e5 {[%clk 0:00:09.3]} 28. Be7 {[%clk 0:00:30.5]} 28... Bxe7 {[%clk
0:00:07.4]} 29. Rxe7 {[%clk 0:00:31.4]} 29... Rxe7 {[%clk 0:00:07.9]} 30. Rxe7
{[%clk 0:00:31.6]} 30... Be6 {[%clk 0:00:08.8]} 31. Ra7 {[%clk 0:00:30.9]} 31...
Kh7 {[%clk 0:00:08.8]} 32. Ra5 {[%clk 0:00:29.8]} 32... f6 {[%clk 0:00:08.8]}
33. Ra6 {[%clk 0:00:30.4]} 33... Bf5 {[%clk 0:00:07.9]} 34. Ra7 {[%clk
0:00:30.2]} 34... h4 {[%clk 0:00:08]} 35. Ra4 {[%clk 0:00:28.8]} 35... g5 {[%clk
0:00:08]} 36. Kf1 {[%clk 0:00:27]} 36... Kg6 {[%clk 0:00:08.4]} 37. Ke2 {[%clk
0:00:27.5]} 37... Bd7 {[%clk 0:00:08.4]} 38. Ra6 {[%clk 0:00:26.8]} 38... Bb5+
{[%clk 0:00:08.7]} 39. Kf3 {[%clk 0:00:23]} 39... Bxa6 {[%clk 0:00:09]} 40. Kg4
{[%clk 0:00:21.1]} 40... f5+ {[%clk 0:00:09]} 0-1

[Event "*** SCC Grand Prix: Titled Tuesday Blitz"]
[Site "Chess.com"]
[Date "2020.07.21"]
[Round "8"]
[White "WPWPWP-2015"]
[Black "DaggiGretarsson"]
[Result "0-1"]
[WhiteElo "2430"]
[BlackElo "2619"]
[TimeControl "180+1"]
[EndTime "11:35:48 PDT"]
[Termination "DaggiGretarsson won on time"]

1. e4 {[%clk 0:03:00.9]} 1... g6 {[%clk 0:02:59.7]} 2. d4 {[%clk 0:02:57.5]}
2... Bg7 {[%clk 0:02:59.9]} 3. Nc3 {[%clk 0:02:58.4]} 3... d6 {[%clk 0:02:59.7]}
4. Be3 {[%clk 0:02:57.1]} 4... a6 {[%clk 0:02:59.3]} 5. a4 {[%clk 0:02:56.4]}
5... b6 {[%clk 0:02:58.6]} 6. h4 {[%clk 0:02:55.5]} 6... h6 {[%clk 0:02:48.2]}
7. f4 {[%clk 0:02:51.1]} 7... Nf6 {[%clk 0:02:24.5]} 8. Be2 {[%clk 0:02:47.9]}
8... h5 {[%clk 0:02:19.6]} 9. Nh3 {[%clk 0:02:43.7]} 9... Ng4 {[%clk 0:02:02.3]}
10. Bg1 {[%clk 0:02:39]} 10... Nc6 {[%clk 0:01:45.7]} 11. d5 {[%clk 0:02:34.9]}
11... Nb4 {[%clk 0:01:34.2]} 12. a5 {[%clk 0:02:22.1]} 12... b5 {[%clk 0:01:33]}
13. Ng5 {[%clk 0:02:13]} 13... O-O {[%clk 0:01:31.5]} 14. Rh3 {[%clk 0:02:08.1]}
14... c6 {[%clk 0:01:30.6]} 15. Bb6 {[%clk 0:02:04.7]} 15... Qe8 {[%clk
0:01:25.9]} 16. Qd2 {[%clk 0:01:40.4]} 16... cxd5 {[%clk 0:01:25]} 17. exd5
{[%clk 0:01:31.1]} 17... Bf5 {[%clk 0:01:24.4]} 18. Nce4 {[%clk 0:01:14.6]}
18... f6 {[%clk 0:00:26.4]} 19. Qxb4 {[%clk 0:00:38.1]} 19... fxg5 {[%clk
0:00:26.2]} 20. Nxg5 {[%clk 0:00:38.4]} 20... Nf6 {[%clk 0:00:25.7]} 21. O-O-O
{[%clk 0:00:28.3]} 21... Rc8 {[%clk 0:00:18.6]} 22. Rc3 {[%clk 0:00:25.5]} 22...
Qd7 {[%clk 0:00:17.2]} 23. Bf3 {[%clk 0:00:19.7]} 23... Ng4 {[%clk 0:00:14.1]}
24. Rxc8 {[%clk 0:00:15.1]} 24... Rxc8 {[%clk 0:00:14.2]} 25. c3 {[%clk
0:00:13.9]} 25... Rc4 {[%clk 0:00:14]} 26. Qb3 {[%clk 0:00:13.4]} 26... Rxf4
{[%clk 0:00:14]} 27. Ne6 {[%clk 0:00:12.4]} 27... Rc4 {[%clk 0:00:13.3]} 28. Bd4
{[%clk 0:00:09.2]} 28... Ne5 {[%clk 0:00:12.4]} 29. Be3 {[%clk 0:00:08.1]} 29...
Ra4 {[%clk 0:00:11.1]} 30. Be2 {[%clk 0:00:07]} 30... Nc4 {[%clk 0:00:09.4]} 31.
Bxc4 {[%clk 0:00:06]} 31... Rxc4 {[%clk 0:00:09.7]} 32. Bd4 {[%clk 0:00:05.7]}
32... Bh6+ {[%clk 0:00:09.4]} 33. Rd2 {[%clk 0:00:04.9]} 33... Bxe6 {[%clk
0:00:09.4]} 34. dxe6 {[%clk 0:00:04.2]} 34... Qxe6 {[%clk 0:00:09.9]} 35. Kd1
{[%clk 0:00:02.2]} 35... Bxd2 {[%clk 0:00:09.9]} 36. Kxd2 {[%clk 0:00:03.1]}
36... Rxd4+ {[%clk 0:00:10.3]} 0-1

[Event "*** SCC Grand Prix: Titled Tuesday Blitz"]
[Site "Chess.com"]
[Date "2020.07.21"]
[Round "8"]
[White "manmanlai1"]
[Black "Eliwood44"]
[Result "0-1"]
[WhiteElo "2483"]
[BlackElo "2343"]
[TimeControl "180+1"]
[EndTime "11:35:48 PDT"]
[Termination "Eliwood44 won by resignation"]

1. b3 {[%clk 0:03:00.9]} 1... d5 {[%clk 0:02:57.9]} 2. Bb2 {[%clk 0:03:01.3]}
2... Bf5 {[%clk 0:02:58.5]} 3. e3 {[%clk 0:02:56.9]} 3... e6 {[%clk 0:02:57.5]}
4. h4 {[%clk 0:02:54.8]} 4... Nf6 {[%clk 0:02:51.8]} 5. Be2 {[%clk 0:02:51.1]}
5... h6 {[%clk 0:02:50.9]} 6. Nf3 {[%clk 0:02:49.2]} 6... Bd6 {[%clk 0:02:49]}
7. d3 {[%clk 0:02:47.7]} 7... c5 {[%clk 0:02:42.8]} 8. Ne5 {[%clk 0:02:42.3]}
8... Qc7 {[%clk 0:02:30.6]} 9. f4 {[%clk 0:02:41.5]} 9... Nc6 {[%clk 0:02:28.1]}
10. Nxc6 {[%clk 0:02:36.2]} 10... bxc6 {[%clk 0:02:28.1]} 11. Nd2 {[%clk
0:02:31.5]} 11... d4 {[%clk 0:02:17.6]} 12. e4 {[%clk 0:02:28.8]} 12... Bxf4
{[%clk 0:01:53.7]} 13. exf5 {[%clk 0:02:19.7]} 13... Bg3+ {[%clk 0:01:50.5]} 14.
Kf1 {[%clk 0:02:19.1]} 14... Nd5 {[%clk 0:01:45.5]} 15. Kg1 {[%clk 0:02:19]}
15... Qf4 {[%clk 0:01:45]} 16. Ne4 {[%clk 0:00:31.6]} 16... Qe3+ {[%clk
0:00:51.3]} 17. Kf1 {[%clk 0:00:30.4]} 17... exf5 {[%clk 0:00:44.1]} 18. Nxg3
{[%clk 0:00:26]} 18... Qxg3 {[%clk 0:00:43.9]} 19. Bc1 {[%clk 0:00:24.7]} 19...
O-O {[%clk 0:00:35]} 20. Qe1 {[%clk 0:00:24.7]} 20... Qd6 {[%clk 0:00:20.2]} 21.
Bf3 {[%clk 0:00:24.9]} 21... Rae8 {[%clk 0:00:19.5]} 22. Qf2 {[%clk 0:00:25.5]}
22... Nc3 {[%clk 0:00:16.5]} 23. Bd2 {[%clk 0:00:25.6]} 23... f4 {[%clk
0:00:09.5]} 24. Kg1 {[%clk 0:00:25.2]} 24... Re3 {[%clk 0:00:08.6]} 25. Kh2
{[%clk 0:00:25.3]} 25... Rfe8 {[%clk 0:00:07.5]} 26. Bxc3 {[%clk 0:00:24]} 26...
dxc3 {[%clk 0:00:07.3]} 27. Rhe1 {[%clk 0:00:22.5]} 27... g5 {[%clk 0:00:06.3]}
28. Kg1 {[%clk 0:00:18.7]} 28... f5 {[%clk 0:00:05.1]} 29. hxg5 {[%clk
0:00:15.3]} 29... hxg5 {[%clk 0:00:05]} 30. Rxe3 {[%clk 0:00:14.7]} 30... fxe3
{[%clk 0:00:05.2]} 31. Qe1 {[%clk 0:00:14.7]} 31... g4 {[%clk 0:00:05.4]} 32.
Be2 {[%clk 0:00:13.6]} 32... Re7 {[%clk 0:00:05.2]} 33. Qxc3 {[%clk 0:00:13.3]}
33... Rh7 {[%clk 0:00:04.9]} 34. Qc4+ {[%clk 0:00:10.9]} 34... Kh8 {[%clk
0:00:04.9]} 35. Qc3+ {[%clk 0:00:10.3]} 35... Kg8 {[%clk 0:00:05.1]} 36. Qc4+
{[%clk 0:00:10.1]} 36... Kf8 {[%clk 0:00:04.9]} 0-1

[Event "*** SCC Grand Prix: Titled Tuesday Blitz"]
[Site "Chess.com"]
[Date "2020.07.21"]
[Round "8"]
[White "theblitzchamp"]
[Black "NormWeinstein"]
[Result "1-0"]
[WhiteElo "2667"]
[BlackElo "2462"]
[TimeControl "180+1"]
[EndTime "11:35:50 PDT"]
[Termination "theblitzchamp won by checkmate"]

1. d4 {[%clk 0:03:00.9]} 1... c5 {[%clk 0:02:58.9]} 2. d5 {[%clk 0:03:00.7]}
2... e5 {[%clk 0:02:59.3]} 3. Nc3 {[%clk 0:02:54.9]} 3... d6 {[%clk 0:02:59.6]}
4. e4 {[%clk 0:02:54.6]} 4... Be7 {[%clk 0:03:00]} 5. f4 {[%clk 0:02:55]} 5...
exf4 {[%clk 0:02:58.7]} 6. Bxf4 {[%clk 0:02:55.9]} 6... Nf6 {[%clk 0:02:58.1]}
7. Nf3 {[%clk 0:02:56.5]} 7... O-O {[%clk 0:02:57.5]} 8. Bd3 {[%clk 0:02:56.8]}
8... Bg4 {[%clk 0:02:57.1]} 9. O-O {[%clk 0:02:56.7]} 9... Nbd7 {[%clk
0:02:57.3]} 10. Qe1 {[%clk 0:02:57]} 10... Ne8 {[%clk 0:02:53.7]} 11. Qg3 {[%clk
0:02:54.4]} 11... Bxf3 {[%clk 0:02:52.4]} 12. Rxf3 {[%clk 0:02:49.3]} 12... Bf6
{[%clk 0:02:51.6]} 13. Raf1 {[%clk 0:01:54.6]} 13... Ne5 {[%clk 0:02:45.4]} 14.
Bxe5 {[%clk 0:01:50.7]} 14... Bxe5 {[%clk 0:02:44.6]} 15. Qh3 {[%clk 0:01:51.1]}
15... a6 {[%clk 0:02:37.4]} 16. Nd1 {[%clk 0:01:43.4]} 16... b5 {[%clk
0:02:33.3]} 17. b3 {[%clk 0:01:43.8]} 17... Ra7 {[%clk 0:02:10.5]} 18. Kh1
{[%clk 0:01:40.8]} 18... Nf6 {[%clk 0:02:04.6]} 19. Ne3 {[%clk 0:01:36.6]} 19...
g6 {[%clk 0:01:58.3]} 20. c4 {[%clk 0:01:32.2]} 20... b4 {[%clk 0:01:56.8]} 21.
g4 {[%clk 0:01:13.6]} 21... Kg7 {[%clk 0:01:38.2]} 22. Qh4 {[%clk 0:00:57.7]}
22... h6 {[%clk 0:01:33]} 23. g5 {[%clk 0:00:48.8]} 23... Ng8 {[%clk 0:01:15.4]}
24. Rg1 {[%clk 0:00:42.2]} 24... h5 {[%clk 0:00:59.2]} 25. Be2 {[%clk
0:00:41.9]} 25... Bd4 {[%clk 0:00:54.6]} 26. Rh3 {[%clk 0:00:35.2]} 26... Bxe3
{[%clk 0:00:53.3]} 27. Rxe3 {[%clk 0:00:35.2]} 27... Qe7 {[%clk 0:00:52.6]} 28.
e5 {[%clk 0:00:17.6]} 28... dxe5 {[%clk 0:00:48.9]} 29. Bxh5 {[%clk 0:00:18]}
29... gxh5 {[%clk 0:00:36.6]} 30. Qxh5 {[%clk 0:00:18.2]} 30... Rd8 {[%clk
0:00:35.4]} 31. Rf1 {[%clk 0:00:16.6]} 31... Rd6 {[%clk 0:00:30.9]} 32. Rh3
{[%clk 0:00:15.4]} 32... Kf8 {[%clk 0:00:26.6]} 33. g6 {[%clk 0:00:13.8]} 33...
Rf6 {[%clk 0:00:21.4]} 34. Rhf3 {[%clk 0:00:08.5]} 34... Rxf3 {[%clk 0:00:20.2]}
35. Rxf3 {[%clk 0:00:09.4]} 35... f6 {[%clk 0:00:15.3]} 36. Qf5 {[%clk
0:00:09.1]} 36... Qd7 {[%clk 0:00:13.8]} 37. g7+ {[%clk 0:00:09]} 37... Qxg7
{[%clk 0:00:13.3]} 38. Qc8+ {[%clk 0:00:08.4]} 38... Kf7 {[%clk 0:00:12.6]} 39.
Qe6+ {[%clk 0:00:08.4]} 39... Kf8 {[%clk 0:00:13]} 40. Qc8+ {[%clk 0:00:07.3]}
40... Kf7 {[%clk 0:00:12.4]} 41. Rg3 {[%clk 0:00:06.9]} 41... Qf8 {[%clk
0:00:10.2]} 42. Qe6# {[%clk 0:00:07.1]} 1-0